[Event "*** Titled Tuesday Blitz"]
[Site "Chess.com"]
[Date "2020.04.21"]
[Round "2"]
[White "DejanNestor64"]
[Black "WiktoriaPOL"]
[Result "1-0"]
[WhiteElo "2387"]
[BlackElo "2063"]
[TimeControl "180+1"]
[EndTime "10:17:01 PDT"]
[Termination "DejanNestor64 won on time"]

1. d4 {[%clk 0:03:00.9]} 1... Nf6 {[%clk 0:02:58.7]} 2. c4 {[%clk 0:03:00]} 2...
g6 {[%clk 0:02:58.5]} 3. Nc3 {[%clk 0:02:55.4]} 3... Bg7 {[%clk 0:02:58.2]} 4.
e4 {[%clk 0:02:54.5]} 4... d6 {[%clk 0:02:55.7]} 5. Be2 {[%clk 0:02:54.7]} 5...
O-O {[%clk 0:02:52.9]} 6. Bg5 {[%clk 0:02:55.1]} 6... c5 {[%clk 0:02:33.8]} 7.
d5 {[%clk 0:02:53]} 7... e6 {[%clk 0:02:33.4]} 8. Nf3 {[%clk 0:02:47.8]} 8...
exd5 {[%clk 0:02:32.3]} 9. cxd5 {[%clk 0:02:43.8]} 9... h6 {[%clk 0:02:31.3]}
10. Bh4 {[%clk 0:02:42.3]} 10... Re8 {[%clk 0:02:27.8]} 11. Nd2 {[%clk
0:02:41.6]} 11... a6 {[%clk 0:02:13.6]} 12. a4 {[%clk 0:02:40.6]} 12... Nbd7
{[%clk 0:02:07]} 13. O-O {[%clk 0:02:38.9]} 13... g5 {[%clk 0:02:04.8]} 14. Bg3
{[%clk 0:02:36.8]} 14... Ne5 {[%clk 0:02:00.5]} 15. Qc2 {[%clk 0:02:29.1]} 15...
h5 {[%clk 0:01:45.1]} 16. f4 {[%clk 0:02:02]} 16... gxf4 {[%clk 0:01:42.3]} 17.
Bxf4 {[%clk 0:01:59.3]} 17... Ng6 {[%clk 0:01:39.8]} 18. Bg5 {[%clk 0:01:21]}
18... h4 {[%clk 0:01:04]} 19. Nc4 {[%clk 0:01:07.1]} 19... Ne5 {[%clk 0:00:40]}
20. Nxe5 {[%clk 0:01:00.9]} 20... Rxe5 {[%clk 0:00:31.2]} 21. Bxh4 {[%clk
0:01:01.3]} 21... Kh7 {[%clk 0:00:08.4]} 22. Rf4 {[%clk 0:00:47.7]} 22... Bd7
{[%clk 0:00:03.7]} 23. Raf1 {[%clk 0:00:45.6]} 23... Kg6 {[%clk 0:00:03.3]} 24.
Bg4 {[%clk 0:00:33]} 24... Bxg4 {[%clk 0:00:02]} 25. Rxg4+ {[%clk 0:00:33]}
25... Kh7 {[%clk 0:00:02]} 26. Rgf4 {[%clk 0:00:29.5]} 1-0

[Event "*** Titled Tuesday Blitz"]
[Site "Chess.com"]
[Date "2020.04.21"]
[Round "2"]
[White "Zaven_ChessMood"]
[Black "crazy_machine"]
[Result "1-0"]
[WhiteElo "2970"]
[BlackElo "2605"]
[TimeControl "180+1"]
[EndTime "10:17:02 PDT"]
[Termination "Zaven_ChessMood won by resignation"]

1. e4 {[%clk 0:03:00.9]} 1... d6 {[%clk 0:02:58.3]} 2. d4 {[%clk 0:03:00.5]}
2... Nf6 {[%clk 0:02:58.1]} 3. Nc3 {[%clk 0:03:01.2]} 3... g6 {[%clk 0:02:58.2]}
4. f4 {[%clk 0:03:01.8]} 4... Bg7 {[%clk 0:02:58.3]} 5. Nf3 {[%clk 0:03:02.4]}
5... O-O {[%clk 0:02:58.8]} 6. Bd3 {[%clk 0:03:03]} 6... Na6 {[%clk 0:02:58.5]}
7. O-O {[%clk 0:03:01.7]} 7... c5 {[%clk 0:02:58.7]} 8. d5 {[%clk 0:03:02.1]}
8... Rb8 {[%clk 0:02:59.2]} 9. Kh1 {[%clk 0:03:02.1]} 9... Bg4 {[%clk
0:02:55.8]} 10. h3 {[%clk 0:03:00.4]} 10... Bxf3 {[%clk 0:02:55.9]} 11. Qxf3
{[%clk 0:03:01.2]} 11... Nb4 {[%clk 0:02:55.8]} 12. f5 {[%clk 0:03:00]} 12...
Nxd3 {[%clk 0:02:53.7]} 13. cxd3 {[%clk 0:03:00.9]} 13... b5 {[%clk 0:02:53]}
14. Bg5 {[%clk 0:02:59.8]} 14... Nd7 {[%clk 0:02:45]} 15. Rae1 {[%clk
0:02:57.4]} 15... Ne5 {[%clk 0:02:44.2]} 16. Qg3 {[%clk 0:02:57.2]} 16... c4
{[%clk 0:02:43.1]} 17. d4 {[%clk 0:02:36.3]} 17... Nd3 {[%clk 0:02:42.6]} 18. e5
{[%clk 0:02:35.7]} 18... Nxe1 {[%clk 0:02:35.3]} 19. f6 {[%clk 0:02:31.5]} 19...
exf6 {[%clk 0:02:31.6]} 20. exf6 {[%clk 0:02:32.4]} 20... Bh8 {[%clk 0:02:24]}
21. Qxe1 {[%clk 0:02:32.5]} 21... Re8 {[%clk 0:02:20.7]} 22. Qh4 {[%clk
0:02:31.4]} 22... b4 {[%clk 0:02:10.3]} 23. Ne4 {[%clk 0:02:31.2]} 23... c3
{[%clk 0:02:08.9]} 24. bxc3 {[%clk 0:02:30.6]} 24... bxc3 {[%clk 0:02:08.9]} 25.
Nxc3 {[%clk 0:02:31.5]} 25... Rb2 {[%clk 0:02:06.2]} 26. Ne4 {[%clk 0:02:28.5]}
26... Qb6 {[%clk 0:02:02]} 27. Bc1 {[%clk 0:02:18.5]} 27... Rb1 {[%clk
0:01:54.9]} 28. Ng5 {[%clk 0:02:14.3]} 28... h5 {[%clk 0:01:54.8]} 29. Qf4
{[%clk 0:01:50.8]} 29... Qb4 {[%clk 0:01:37.3]} 30. Nxf7 {[%clk 0:01:30.6]}
30... Re1 {[%clk 0:01:17.9]} 31. Nxh8 {[%clk 0:01:18.8]} 31... Rxf1+ {[%clk
0:00:40.4]} 32. Qxf1 {[%clk 0:01:19.7]} 32... Qb8 {[%clk 0:00:39.2]} 33. f7+
{[%clk 0:01:00.4]} 33... Kg7 {[%clk 0:00:37.9]} 34. Nxg6 {[%clk 0:00:55.1]}
34... Rxc1 {[%clk 0:00:28.8]} 35. Qxc1 {[%clk 0:00:53.4]} 35... Kxg6 {[%clk
0:00:28.3]} 36. Qf4 {[%clk 0:00:51.6]} 36... Qf8 {[%clk 0:00:28.1]} 37. Kh2
{[%clk 0:00:48.7]} 37... a5 {[%clk 0:00:26.7]} 38. a4 {[%clk 0:00:47.8]} 38...
Qxf7 {[%clk 0:00:24.8]} 39. Qxd6+ {[%clk 0:00:45.9]} 39... Kg7 {[%clk
0:00:23.4]} 40. Qe5+ {[%clk 0:00:46.8]} 40... Kh7 {[%clk 0:00:23.3]} 41. d6
{[%clk 0:00:47.2]} 41... Qd7 {[%clk 0:00:22.7]} 42. Qe7+ {[%clk 0:00:47.1]} 1-0

[Event "*** Titled Tuesday Blitz"]
[Site "Chess.com"]
[Date "2020.04.21"]
[Round "2"]
[White "HaryKane"]
[Black "SlavenPastar"]
[Result "1-0"]
[WhiteElo "2663"]
[BlackElo "2411"]
[TimeControl "180+1"]
[EndTime "10:17:02 PDT"]
[Termination "HaryKane won by resignation"]

1. e4 {[%clk 0:03:00.9]} 1... b6 {[%clk 0:02:59.6]} 2. d4 {[%clk 0:02:59.8]}
2... Bb7 {[%clk 0:02:59.6]} 3. Bd3 {[%clk 0:02:59.8]} 3... Nf6 {[%clk
0:02:59.8]} 4. Qe2 {[%clk 0:02:58.7]} 4... e6 {[%clk 0:02:59.8]} 5. Nd2 {[%clk
0:02:58.3]} 5... d5 {[%clk 0:02:53.1]} 6. e5 {[%clk 0:02:58.1]} 6... Nfd7 {[%clk
0:02:53.1]} 7. Ngf3 {[%clk 0:02:58]} 7... a5 {[%clk 0:02:46.8]} 8. c3 {[%clk
0:02:54.9]} 8... Ba6 {[%clk 0:02:45]} 9. O-O {[%clk 0:02:54.8]} 9... Bxd3 {[%clk
0:02:45]} 10. Qxd3 {[%clk 0:02:55.7]} 10... c5 {[%clk 0:02:44.5]} 11. Rd1 {[%clk
0:02:53.4]} 11... c4 {[%clk 0:02:34.1]} 12. Qe2 {[%clk 0:02:50.5]} 12... Nc6
{[%clk 0:02:32.3]} 13. b3 {[%clk 0:02:47.4]} 13... cxb3 {[%clk 0:02:14.6]} 14.
axb3 {[%clk 0:02:48.3]} 14... Be7 {[%clk 0:02:12.3]} 15. Nf1 {[%clk 0:02:47.2]}
15... Rb8 {[%clk 0:01:59.1]} 16. Ng3 {[%clk 0:02:41.1]} 16... h5 {[%clk
0:01:56.1]} 17. h3 {[%clk 0:02:31.9]} 17... g6 {[%clk 0:01:54.7]} 18. Be3 {[%clk
0:02:29]} 18... b5 {[%clk 0:01:50]} 19. Qd2 {[%clk 0:02:22.8]} 19... Qc7 {[%clk
0:01:34]} 20. Rdc1 {[%clk 0:02:18.8]} 20... Nb6 {[%clk 0:01:27.8]} 21. Bg5
{[%clk 0:02:14.4]} 21... Bxg5 {[%clk 0:01:24]} 22. Qxg5 {[%clk 0:02:06.9]} 22...
Qd8 {[%clk 0:01:20.1]} 23. Qf4 {[%clk 0:02:06.8]} 23... Ne7 {[%clk 0:01:09.6]}
24. Ng5 {[%clk 0:01:56.8]} 24... Nf5 {[%clk 0:01:05.3]} 25. Nxf5 {[%clk
0:01:56]} 25... gxf5 {[%clk 0:01:05.1]} 26. Rxa5 {[%clk 0:01:48.5]} 26... Nd7
{[%clk 0:00:38.9]} 27. Ra7 {[%clk 0:01:45]} 27... h4 {[%clk 0:00:38.6]} 28. Rca1
{[%clk 0:01:35.1]} 28... Rc8 {[%clk 0:00:25]} 29. Rc1 {[%clk 0:01:13.8]} 29...
Rg8 {[%clk 0:00:23.3]} 30. Nf3 {[%clk 0:01:12.7]} 30... Rh8 {[%clk 0:00:23]} 31.
Kh1 {[%clk 0:01:06.5]} 31... Nf8 {[%clk 0:00:19.7]} 32. Rb7 {[%clk 0:00:59.2]}
32... Rb8 {[%clk 0:00:12.8]} 33. Rxb8 {[%clk 0:00:57.5]} 33... Qxb8 {[%clk
0:00:12.9]} 34. Ra1 {[%clk 0:00:57.6]} 34... Qd8 {[%clk 0:00:07.8]} 35. Ra7
{[%clk 0:00:53.3]} 35... Ng6 {[%clk 0:00:07.4]} 36. Qg5 {[%clk 0:00:52.7]} 36...
Qxg5 {[%clk 0:00:06.5]} 37. Nxg5 {[%clk 0:00:53.6]} 37... Kf8 {[%clk 0:00:05.9]}
38. Rxf7+ {[%clk 0:00:52.3]} 1-0

[Event "*** Titled Tuesday Blitz"]
[Site "Chess.com"]
[Date "2020.04.21"]
[Round "2"]
[White "allvim"]
[Black "lucliasco"]
[Result "0-1"]
[WhiteElo "2297"]
[BlackElo "2638"]
[TimeControl "180+1"]
[EndTime "10:17:07 PDT"]
[Termination "lucliasco won by resignation"]

1. e4 {[%clk 0:03:00.9]} 1... c5 {[%clk 0:02:55.7]} 2. Nf3 {[%clk 0:02:54.4]}
2... Nc6 {[%clk 0:02:43.9]} 3. d4 {[%clk 0:02:53.3]} 3... cxd4 {[%clk
0:02:43.7]} 4. Nxd4 {[%clk 0:02:52.9]} 4... Qb6 {[%clk 0:02:44.3]} 5. Nb3 {[%clk
0:02:46.4]} 5... Nf6 {[%clk 0:02:43.1]} 6. Nc3 {[%clk 0:02:44.6]} 6... e6 {[%clk
0:02:42.7]} 7. Bd3 {[%clk 0:02:39.3]} 7... Bb4 {[%clk 0:02:43.1]} 8. O-O {[%clk
0:02:38]} 8... O-O {[%clk 0:02:40.7]} 9. Be3 {[%clk 0:02:35.9]} 9... Qd8 {[%clk
0:02:36.7]} 10. Bg5 {[%clk 0:02:23.4]} 10... Bxc3 {[%clk 0:02:33.2]} 11. bxc3
{[%clk 0:02:18.5]} 11... h6 {[%clk 0:02:33.6]} 12. Bh4 {[%clk 0:02:03.5]} 12...
e5 {[%clk 0:02:33.6]} 13. f4 {[%clk 0:01:44.2]} 13... exf4 {[%clk 0:02:20.9]}
14. Rxf4 {[%clk 0:01:09.4]} 14... g5 {[%clk 0:02:19.9]} 15. Rf5 {[%clk
0:01:08.8]} 15... d6 {[%clk 0:02:12.4]} 16. Qf3 {[%clk 0:00:52.4]} 16... Nh7
{[%clk 0:01:51.5]} 17. Bg3 {[%clk 0:00:48.3]} 17... Bxf5 {[%clk 0:01:51.1]} 18.
Qxf5 {[%clk 0:00:48.6]} 18... Ne5 {[%clk 0:01:50.5]} 19. Nd4 {[%clk 0:00:43.2]}
19... Qc8 {[%clk 0:01:44.2]} 20. Qf2 {[%clk 0:00:38.2]} 20... Qxc3 {[%clk
0:01:41.9]} 21. Rf1 {[%clk 0:00:37.7]} 21... Qc5 {[%clk 0:01:27.8]} 22. h4
{[%clk 0:00:26.7]} 22... Ng4 {[%clk 0:01:21.7]} 23. Qf5 {[%clk 0:00:15.6]} 23...
Qxd4+ {[%clk 0:01:20.6]} 24. Kh1 {[%clk 0:00:15.6]} 24... Ne5 {[%clk 0:01:13.3]}
25. hxg5 {[%clk 0:00:15.7]} 25... Nxg5 {[%clk 0:01:08.8]} 26. Bf4 {[%clk
0:00:14.5]} 26... Ng6 {[%clk 0:01:03.6]} 27. Bxg5 {[%clk 0:00:12.1]} 27... hxg5
{[%clk 0:01:04.5]} 28. Qxg5 {[%clk 0:00:10.7]} 28... Qh8+ {[%clk 0:01:04.2]} 29.
Kg1 {[%clk 0:00:10.4]} 29... Qh4 {[%clk 0:01:04.7]} 30. Qf5 {[%clk 0:00:10.2]}
30... Rae8 {[%clk 0:01:03.5]} 31. Rf3 {[%clk 0:00:08.6]} 31... Re5 {[%clk
0:00:58.6]} 32. Qd7 {[%clk 0:00:07.4]} 32... Qe1+ {[%clk 0:00:56.2]} 33. Kh2
{[%clk 0:00:05.4]} 33... Rh5+ {[%clk 0:00:56]} 34. Rh3 {[%clk 0:00:06.3]} 34...
Rxh3+ {[%clk 0:00:56.2]} 35. Qxh3 {[%clk 0:00:06.4]} 35... Kg7 {[%clk
0:00:52.5]} 0-1

[Event "*** Titled Tuesday Blitz"]
[Site "Chess.com"]
[Date "2020.04.21"]
[Round "2"]
[White "talaicito"]
[Black "ENEASZ"]
[Result "0-1"]
[WhiteElo "2279"]
[BlackElo "2533"]
[TimeControl "180+1"]
[EndTime "10:17:07 PDT"]
[Termination "ENEASZ won on time"]

1. d4 {[%clk 0:03:00.9]} 1... d5 {[%clk 0:02:56.4]} 2. Nc3 {[%clk 0:02:58.8]}
2... Bf5 {[%clk 0:02:51.8]} 3. Bf4 {[%clk 0:02:57.6]} 3... a6 {[%clk 0:02:47]}
4. f3 {[%clk 0:02:56.3]} 4... Nf6 {[%clk 0:02:46.4]} 5. g4 {[%clk 0:02:54.9]}
5... Bg6 {[%clk 0:02:45]} 6. h4 {[%clk 0:02:55.1]} 6... h5 {[%clk 0:02:42.9]} 7.
g5 {[%clk 0:02:54.1]} 7... Ng8 {[%clk 0:02:43]} 8. e3 {[%clk 0:02:53.8]} 8... e6
{[%clk 0:02:42.8]} 9. Bd3 {[%clk 0:02:53.8]} 9... Ne7 {[%clk 0:02:38.3]} 10.
Nge2 {[%clk 0:02:48.2]} 10... Nd7 {[%clk 0:02:38.2]} 11. Bxg6 {[%clk 0:02:06.6]}
11... Nxg6 {[%clk 0:02:39.1]} 12. Qd3 {[%clk 0:01:57.1]} 12... c5 {[%clk
0:02:37.4]} 13. e4 {[%clk 0:01:51.3]} 13... Nb6 {[%clk 0:02:24.6]} 14. dxc5
{[%clk 0:01:18.2]} 14... Bxc5 {[%clk 0:02:25.5]} 15. exd5 {[%clk 0:01:17.9]}
15... exd5 {[%clk 0:02:20]} 16. O-O-O {[%clk 0:01:16.8]} 16... O-O {[%clk
0:02:07.5]} 17. Kb1 {[%clk 0:00:53.5]} 17... Re8 {[%clk 0:02:03.8]} 18. Bg3
{[%clk 0:00:38.9]} 18... Re3 {[%clk 0:02:01.3]} 19. Qd2 {[%clk 0:00:37.9]} 19...
Nc4 {[%clk 0:02:01.2]} 20. Qxd5 {[%clk 0:00:28.3]} 20... Qxd5 {[%clk 0:01:54.7]}
21. Rxd5 {[%clk 0:00:29]} 21... Bb6 {[%clk 0:01:48.2]} 22. b3 {[%clk 0:00:25.3]}
22... Na3+ {[%clk 0:01:43.4]} 23. Kb2 {[%clk 0:00:24.9]} 23... Nb5 {[%clk
0:01:44]} 24. Bf2 {[%clk 0:00:16.7]} 24... Nxc3 {[%clk 0:01:39.1]} 25. Nxc3
{[%clk 0:00:14.6]} 25... Rxc3 {[%clk 0:01:39.3]} 26. Bxb6 {[%clk 0:00:14.9]}
26... Rxf3 {[%clk 0:01:37.5]} 27. Rhd1 {[%clk 0:00:12.2]} 27... Nxh4 {[%clk
0:01:34.2]} 28. Rd7 {[%clk 0:00:10.8]} 28... Ng6 {[%clk 0:01:29.4]} 29. Rxb7
{[%clk 0:00:10.2]} 29... h4 {[%clk 0:01:29.6]} 30. Bc7 {[%clk 0:00:09.5]} 30...
h3 {[%clk 0:01:29.4]} 31. Rd2 {[%clk 0:00:09.8]} 31... Re8 {[%clk 0:01:19.1]}
32. c4 {[%clk 0:00:08.8]} 32... Kh7 {[%clk 0:01:15.4]} 33. c5 {[%clk 0:00:08.7]}
33... Re7 {[%clk 0:01:11.2]} 34. c6 {[%clk 0:00:07.8]} 34... Re6 {[%clk
0:01:00.3]} 35. Rc2 {[%clk 0:00:06.1]} 35... Ne7 {[%clk 0:00:58.4]} 36. Rb6
{[%clk 0:00:02.9]} 36... Nd5 {[%clk 0:00:58]} 37. Rb7 {[%clk 0:00:01.6]} 37...
Ne7 {[%clk 0:00:57.5]} 38. Rb6 {[%clk 0:00:01.7]} 38... Rf5 {[%clk 0:00:49]} 0-1

[Event "*** Titled Tuesday Blitz"]
[Site "Chess.com"]
[Date "2020.04.21"]
[Round "2"]
[White "KikaLaurincova"]
[Black "Nastya_Rakhmangulova"]
[Result "0-1"]
[WhiteElo "1981"]
[BlackElo "2377"]
[TimeControl "180+1"]
[EndTime "10:17:08 PDT"]
[Termination "Nastya_Rakhmangulova won by resignation"]

1. e4 {[%clk 0:03:00.9]} 1... d5 {[%clk 0:02:58.3]} 2. exd5 {[%clk 0:03:00.8]}
2... Qxd5 {[%clk 0:02:59.2]} 3. Nc3 {[%clk 0:03:00.9]} 3... Qd6 {[%clk
0:02:59.7]} 4. d4 {[%clk 0:02:59.9]} 4... Nf6 {[%clk 0:03:00.2]} 5. Bc4 {[%clk
0:02:58]} 5... Bg4 {[%clk 0:02:59.8]} 6. Nf3 {[%clk 0:02:56.2]} 6... Nc6 {[%clk
0:02:58.6]} 7. Be3 {[%clk 0:02:44.9]} 7... O-O-O {[%clk 0:02:57.9]} 8. O-O
{[%clk 0:02:35.7]} 8... e6 {[%clk 0:02:52.1]} 9. Nb5 {[%clk 0:02:26.3]} 9... Qd7
{[%clk 0:02:50.4]} 10. c3 {[%clk 0:02:05.3]} 10... Nd5 {[%clk 0:02:12.2]} 11.
Bxd5 {[%clk 0:01:52.6]} 11... Qxd5 {[%clk 0:02:03.3]} 12. a4 {[%clk 0:01:37.3]}
12... Bxf3 {[%clk 0:02:01]} 13. Qxf3 {[%clk 0:01:30.3]} 13... Qxf3 {[%clk
0:02:01.3]} 14. gxf3 {[%clk 0:01:31.2]} 14... a6 {[%clk 0:02:01.7]} 15. Na3
{[%clk 0:01:30.8]} 15... e5 {[%clk 0:01:54.7]} 16. dxe5 {[%clk 0:01:26.4]} 16...
Bxa3 {[%clk 0:01:48.8]} 17. Rxa3 {[%clk 0:01:25.5]} 17... Nxe5 {[%clk
0:01:49.7]} 18. Kg2 {[%clk 0:01:26]} 18... Nc4 {[%clk 0:01:44.2]} 19. Rb3 {[%clk
0:01:24.8]} 19... Rd6 {[%clk 0:01:39.2]} 20. Rb4 {[%clk 0:01:18.4]} 20... Ne5
{[%clk 0:01:33.7]} 21. Bf4 {[%clk 0:01:04.6]} 21... Rg6+ {[%clk 0:01:33.3]} 22.
Bg3 {[%clk 0:01:00.3]} 22... h5 {[%clk 0:01:23.4]} 23. h4 {[%clk 0:00:45.9]}
23... Nd3 {[%clk 0:01:23.2]} 24. Rc4 {[%clk 0:00:39.2]} 24... c6 {[%clk
0:01:19.9]} 25. b4 {[%clk 0:00:35.8]} 25... Nb2 {[%clk 0:00:56.6]} 26. Rf4
{[%clk 0:00:28.6]} 26... f6 {[%clk 0:00:54.9]} 27. b5 {[%clk 0:00:23.3]} 27...
Re8 {[%clk 0:00:40.8]} 28. bxc6 {[%clk 0:00:20.1]} 28... bxc6 {[%clk 0:00:40.6]}
29. Rb4 {[%clk 0:00:17.5]} 29... Nd3 {[%clk 0:00:36.9]} 30. Rb8+ {[%clk
0:00:11.7]} 30... Kd7 {[%clk 0:00:36.8]} 31. Rd1 {[%clk 0:00:11.1]} 31... Rxb8
{[%clk 0:00:35.8]} 32. Rxd3+ {[%clk 0:00:10.6]} 32... Kc8 {[%clk 0:00:35.5]} 0-1

[Event "*** Titled Tuesday Blitz"]
[Site "Chess.com"]
[Date "2020.04.21"]
[Round "2"]
[White "SameerMujumdar"]
[Black "JozefKneht"]
[Result "0-1"]
[WhiteElo "2205"]
[BlackElo "2437"]
[TimeControl "180+1"]
[EndTime "10:17:09 PDT"]
[Termination "JozefKneht won by resignation"]

1. e4 {[%clk 0:02:56.7]} 1... e5 {[%clk 0:02:59.3]} 2. Nf3 {[%clk 0:02:56.2]}
2... Nc6 {[%clk 0:02:56.9]} 3. d4 {[%clk 0:02:57.1]} 3... exd4 {[%clk
0:02:56.3]} 4. Bc4 {[%clk 0:02:57.5]} 4... Bc5 {[%clk 0:02:54.7]} 5. O-O {[%clk
0:02:56.9]} 5... Nf6 {[%clk 0:02:54.8]} 6. c3 {[%clk 0:02:57.2]} 6... Nxe4
{[%clk 0:02:51.1]} 7. cxd4 {[%clk 0:02:54.7]} 7... d5 {[%clk 0:02:51.1]} 8. Bb5
{[%clk 0:02:37.5]} 8... Bb6 {[%clk 0:02:45.8]} 9. Ne5 {[%clk 0:02:37.1]} 9...
O-O {[%clk 0:02:39.1]} 10. Nxc6 {[%clk 0:02:31.8]} 10... bxc6 {[%clk 0:02:38.7]}
11. Bxc6 {[%clk 0:02:32.7]} 11... Rb8 {[%clk 0:02:30.9]} 12. Nc3 {[%clk
0:02:21.2]} 12... Ba6 {[%clk 0:02:16.4]} 13. Re1 {[%clk 0:02:16.6]} 13... Nxf2
{[%clk 0:02:11.7]} 14. Qa4 {[%clk 0:01:56.2]} 14... Bc4 {[%clk 0:02:00.2]} 15.
Kxf2 {[%clk 0:01:50.9]} 15... Bxd4+ {[%clk 0:01:59.1]} 16. Be3 {[%clk
0:01:44.1]} 16... Rxb2+ {[%clk 0:01:57]} 17. Kg1 {[%clk 0:01:36.6]} 17... Bxc3
{[%clk 0:01:54.1]} 18. Bc5 {[%clk 0:01:35.9]} 18... Rb8 {[%clk 0:01:35.8]} 19.
Rec1 {[%clk 0:01:06.1]} 19... Qf6 {[%clk 0:01:28.8]} 20. Bxf8 {[%clk 0:00:51.9]}
20... Rxf8 {[%clk 0:01:25.2]} 21. Rab1 {[%clk 0:00:51.1]} 21... Bd4+ {[%clk
0:01:11.4]} 22. Kh1 {[%clk 0:00:50.5]} 22... Be5 {[%clk 0:01:11.9]} 23. Qa3
{[%clk 0:00:41]} 23... Qxc6 {[%clk 0:01:09]} 24. Re1 {[%clk 0:00:35.8]} 24...
Qd6 {[%clk 0:01:04.5]} 25. Qxa7 {[%clk 0:00:32.8]} 25... Bxh2 {[%clk 0:00:59.6]}
26. Rb8 {[%clk 0:00:30.5]} 26... g6 {[%clk 0:00:53.4]} 27. Rxf8+ {[%clk
0:00:28.1]} 27... Kxf8 {[%clk 0:00:53]} 28. Qd4 {[%clk 0:00:28.6]} 28... f6
{[%clk 0:00:48]} 29. Qh4 {[%clk 0:00:27.8]} 29... Bg3 {[%clk 0:00:42.4]} 30.
Qh6+ {[%clk 0:00:27.5]} 30... Kg8 {[%clk 0:00:36]} 31. Re8+ {[%clk 0:00:27]}
31... Kf7 {[%clk 0:00:36.1]} 32. Rh8 {[%clk 0:00:26.6]} 32... Qf4 {[%clk
0:00:30.9]} 33. Qxh7+ {[%clk 0:00:23.9]} 33... Ke6 {[%clk 0:00:31]} 34. Re8+
{[%clk 0:00:24.8]} 34... Kf5 {[%clk 0:00:30.7]} 35. Qh3+ {[%clk 0:00:25.3]}
35... Kg5 {[%clk 0:00:28.2]} 0-1

[Event "*** Titled Tuesday Blitz"]
[Site "Chess.com"]
[Date "2020.04.21"]
[Round "2"]
[White "Maybe00"]
[Black "GodDMuhammad"]
[Result "1-0"]
[WhiteElo "2630"]
[BlackElo "2188"]
[TimeControl "180+1"]
[EndTime "10:17:10 PDT"]
[Termination "Maybe00 won by resignation"]

1. d4 {[%clk 0:03:00.9]} 1... Nf6 {[%clk 0:02:58.5]} 2. c4 {[%clk 0:03:01]} 2...
g6 {[%clk 0:02:58.1]} 3. f3 {[%clk 0:03:00.9]} 3... Bg7 {[%clk 0:02:57.6]} 4. e4
{[%clk 0:03:01.2]} 4... O-O {[%clk 0:02:53.9]} 5. Nc3 {[%clk 0:03:01.5]} 5... d6
{[%clk 0:02:50.2]} 6. Nge2 {[%clk 0:03:01.6]} 6... Nbd7 {[%clk 0:02:48.7]} 7.
Be3 {[%clk 0:03:01.3]} 7... e5 {[%clk 0:02:46.6]} 8. d5 {[%clk 0:03:01]} 8... a6
{[%clk 0:02:44.5]} 9. g4 {[%clk 0:03:00.6]} 9... Qe7 {[%clk 0:02:41]} 10. Ng3
{[%clk 0:03:00.8]} 10... Ne8 {[%clk 0:02:28.3]} 11. Qd2 {[%clk 0:03:00.8]} 11...
c6 {[%clk 0:02:04]} 12. h4 {[%clk 0:02:59.4]} 12... Nc5 {[%clk 0:01:56.2]} 13.
b4 {[%clk 0:02:58.6]} 13... Nd7 {[%clk 0:01:56.3]} 14. a3 {[%clk 0:02:58.6]}
14... c5 {[%clk 0:01:51.9]} 15. h5 {[%clk 0:02:56.5]} 15... b6 {[%clk
0:01:43.3]} 16. Bg5 {[%clk 0:02:52.3]} 16... f6 {[%clk 0:01:43.1]} 17. Be3
{[%clk 0:02:52.3]} 17... Bb7 {[%clk 0:01:34.1]} 18. hxg6 {[%clk 0:02:50.8]}
18... hxg6 {[%clk 0:01:33.2]} 19. Bd3 {[%clk 0:02:51]} 19... Kf7 {[%clk
0:01:28.7]} 20. Ke2 {[%clk 0:02:48.5]} 20... Nc7 {[%clk 0:01:28.1]} 21. Rab1
{[%clk 0:02:41.3]} 21... cxb4 {[%clk 0:01:24]} 22. axb4 {[%clk 0:02:41.2]} 22...
Rh8 {[%clk 0:01:19.4]} 23. c5 {[%clk 0:02:41.3]} 23... dxc5 {[%clk 0:01:14.9]}
24. bxc5 {[%clk 0:02:41.1]} 24... Nxc5 {[%clk 0:01:13.4]} 25. Rxb6 {[%clk
0:02:34.6]} 25... Nxd3 {[%clk 0:01:13.1]} 26. Qxd3 {[%clk 0:02:31.4]} 26... Rxh1
{[%clk 0:01:07.9]} 27. Nxh1 {[%clk 0:02:32.3]} 27... Nb5 {[%clk 0:01:02.3]} 28.
d6 {[%clk 0:02:19]} 28... Qd7 {[%clk 0:01:00]} 29. Nf2 {[%clk 0:02:10.2]} 29...
Rc8 {[%clk 0:00:55.1]} 30. Nfd1 {[%clk 0:02:02.1]} 30... Rc6 {[%clk 0:00:51.1]}
31. Nxb5 {[%clk 0:01:50.7]} 31... axb5 {[%clk 0:00:45.4]} 32. Rxc6 {[%clk
0:01:46.4]} 32... Bxc6 {[%clk 0:00:45.2]} 33. Bc5 {[%clk 0:01:39.6]} 33... Bf8
{[%clk 0:00:40.2]} 34. Ne3 {[%clk 0:01:36.4]} 34... Qe6 {[%clk 0:00:37]} 35. Qd2
{[%clk 0:01:29]} 35... Bh6 {[%clk 0:00:32.8]} 36. Kf2 {[%clk 0:01:23.6]} 36...
Bf4 {[%clk 0:00:30.6]} 37. Qa5 {[%clk 0:01:17.1]} 37... Bd7 {[%clk 0:00:26.4]}
38. Nd5 {[%clk 0:01:12.7]} 38... Bc6 {[%clk 0:00:21.9]} 39. Qc7+ {[%clk
0:01:11.1]} 39... Qd7 {[%clk 0:00:22.2]} 40. Nb6 {[%clk 0:01:09.7]} 40... Qxc7
{[%clk 0:00:16.3]} 41. dxc7 {[%clk 0:01:10.6]} 41... Bb7 {[%clk 0:00:16.7]} 42.
c8=Q {[%clk 0:01:11]} 42... Bxc8 {[%clk 0:00:17.3]} 43. Nxc8 {[%clk 0:01:11.9]}
43... Ke6 {[%clk 0:00:17.3]} 44. Na7 {[%clk 0:01:12]} 44... f5 {[%clk
0:00:14.4]} 45. Nxb5 {[%clk 0:01:09.7]} 45... fxg4 {[%clk 0:00:14.1]} 46. fxg4
{[%clk 0:01:10.6]} 46... Kf6 {[%clk 0:00:13.1]} 47. Kf3 {[%clk 0:01:10.9]} 47...
Kg5 {[%clk 0:00:13.6]} 48. Be7+ {[%clk 0:01:10.8]} 48... Kh6 {[%clk 0:00:13.1]}
49. Nd6 {[%clk 0:01:09.9]} 49... Kg7 {[%clk 0:00:13.1]} 50. g5 {[%clk 0:01:10]}
50... Kg8 {[%clk 0:00:12.1]} 51. Bf6 {[%clk 0:01:10.1]} 51... Kf8 {[%clk
0:00:10.3]} 52. Nc4 {[%clk 0:01:10.3]} 1-0